bitfinex/quotes_SOLUSD_20220104
["timestamp","ask_amount","ask_price","bid_price","bid_amount"]
[1641282771000,2.17927999,167.88,167.8,23.6732]
[1641282771201,2.17927999,167.88,167.8,24.1732]
[1641282771400,1.68215169,167.9,167.8,24.1732]
[1641282771601,1.68215169,167.9,167.8,32.7332]
[1641282772203,1.68215169,167.91,167.81,1.3296]
[1641282772406,2.57726669,167.9,167.81,1.8296]
[1641282773203,1.68215169,167.91,167.81,1.8296]
[1641282774204,3.00304862,167.9,167.81,1.8296]
[1641282774404,1.68215169,167.91,167.81,1.8296]
[1641282775205,99.44735169,167.93,167.81,1.8296]
[1641282775408,3.05268942,167.92,167.81,1.8296]
[1641282775905,9.0837,167.94,167.93,7.22739346]
[1641282776106,3.20379235,167.97,167.93,12.27039346]
[1641282776338,3.03019257,167.94,167.93,12.77039346]
[1641282776510,3.20379235,167.97,167.93,12.77039346]
[1641282776710,98.73388283,167.99,167.93,12.77039346]
[1641282776711,1.67623153,167.99,167.93,12.77039346]
[1641282776911,1.67623153,167.99,167.93,41.43967004]
[1641282777208,1.67623153,167.99,167.93,49.99967004]
[1641282777408,3.20379235,168.03,167.93,21.33039346]
[1641282777613,0.5,168.03,167.93,16.28739346]
[1641282778110,2.78542178,168.02,167.93,16.28739346]
[1641282778914,3.28542178,168.02,167.93,16.28739346]
[1641282779110,0.5,168.02,167.93,16.28739346]
[1641282779311,74.7973,168.04,167.93,16.28739346]
[1641282779513,75.2973,168.04,167.93,16.28739346]
[1641282779912,9.9306,168.07,167.93,16.28739346]
[1641282780114,2.31724792,168.06,167.93,16.28739346]
[1641282781314,2.81724792,168.06,167.94,1.339]
[1641282781716,2.81724792,168.06,167.94,1.839]
[1641282785843,2.81724792,168.06,167.94,0.5]
[1641282786043,2.81724792,168.06,167.93,16.28739346]
[1641282787244,2.81724792,168.06,167.94,22.9931]
[1641282787444,33.84766301,168.06,167.94,24.847]
[1641282790348,2.81724792,168.06,167.94,24.847]
[1641282793349,2.31724792,168.06,167.94,24.847]
[1641282793950,3.7439416,168.06,167.94,24.847]
[1641282794753,4.2439416,168.06,167.94,24.847]
[1641282796053,3.7439416,168.06,167.94,24.847]
[1641282796254,4.2439416,168.06,167.94,24.847]
[1641282796854,3.7439416,168.06,167.94,24.847]
[1641282797053,2.31724792,168.06,167.94,24.847]
[1641282799257,2.81724792,168.06,167.94,24.847]
[1641282800361,2.31724792,168.06,167.94,24.847]
[1641282800560,2.31724792,168.06,167.95,8.56]
[1641282800959,2.31724792,168.06,167.96,23.4508]
[1641282801160,2.31724792,168.06,167.96,32.0108]
[1641282801358,2.31724792,168.06,167.96,32.5108]
[1641282801558,2.31724792,168.06,167.96,32.0108]
[1641282801759,2.81724792,168.06,167.96,23.4508]
[1641282802060,4.2439416,168.06,167.96,23.4508]
[1641282803264,12.8039416,168.06,167.96,23.4508]
[1641282805264,12.8039416,168.06,167.94,1.2637]
[1641282806267,12.8039416,168.06,167.93,7.22739346]
[1641282806468,18.7139416,168.06,167.93,7.22739346]
[1641282806766,125.7739416,168.06,167.93,7.22739346]
[1641282807266,130.86905692,168.06,167.93,7.22739346]
[1641282807465,140.29772513,168.06,167.93,7.22739346]
[1641282807666,11.57088693,167.99,167.93,7.22739346]
[1641282807867,12.07088693,167.99,167.93,7.22739346]
[1641282809068,21.00838693,167.99,167.93,7.22739346]
[1641282810569,8.56,167.98,167.93,7.22739346]
[1641282810972,9.06,167.98,167.93,7.22739346]
[1641282811371,8.21364982,167.98,167.93,7.22739346]
[1641282812073,8.9392,167.96,167.93,7.22739346]
[1641282812272,5.53463276,167.95,167.93,6.10739346]
[1641282812472,89.56,167.94,167.93,0.00739346]
[1641282812873,90.06,167.94,167.93,0.00739346]
[1641282813775,9.06,167.94,167.93,0.00739346]
[1641282813974,46.06,167.94,167.93,0.00739346]
[1641282815777,55.0003,167.94,167.93,0.00739346]
[1641282818509,9.06,167.94,167.93,0.00739346]
[1641282821412,10.48669368,167.94,167.93,0.00739346]
[1641282823010,9.06,167.94,167.93,0.00739346]
[1641282826915,0.5,167.94,167.93,0.00739346]
[1641282833722,13.75545656,167.95,167.93,0.00739346]
[1641282833923,14.25545656,167.95,167.93,0.00739346]
[1641282835226,12.09019257,167.95,167.93,0.00739346]
[1641282835629,3.53019257,167.95,167.93,0.00739346]
[1641282840138,3.03019257,167.95,167.93,0.00739346]
[1641282842440,3.03019257,167.95,167.93,3.03959343]
[1641282842639,3.0027892,167.97,167.93,3.29959343]
[1641282842840,11.5627892,167.97,167.93,3.29959343]
[1641282844657,11.5627892,167.97,167.93,0.00739346]
[1641282844858,12.0627892,167.97,167.93,0.00739346]
[1641282845065,12.3227892,167.97,167.93,0.00739346]
[1641282848262,12.0627892,167.97,167.93,0.00739346]
[1641282849462,12.3227892,167.97,167.93,0.00739346]
[1641282850464,8.9386,167.96,167.93,0.00739346]
[1641282850665,8.56,167.95,167.93,0.00739346]
[1641282850864,96.47970323,167.94,167.93,0.00739346]
[1641282851068,108.3298958,167.94,167.93,0.00739346]
[1641282851266,108.8298958,167.94,167.93,0.00739346]
[1641282851471,27.8298958,167.94,167.93,0.00739346]
[1641282853071,36.7693958,167.94,167.93,0.00739346]
[1641282855078,89.93280654,167.93,167.84,102.3913]
[1641282855281,2.84579641,167.91,167.84,102.3913]
[1641282855479,12.16579641,167.91,167.84,102.3913]
[1641282860294,11.90579641,167.91,167.84,102.3913]
[1641282860495,11.90579641,167.91,167.84,102.6513]
[1641282861694,12.16579641,167.91,167.84,102.6513]
[1641282863318,12.16579641,167.91,167.84,25.897]
[1641282864218,9.32,167.91,167.84,25.897]
[1641282865319,11.60313845,167.91,167.84,25.897]
[1641282865521,11.34313845,167.91,167.84,25.897]
[1641282865720,11.60313845,167.91,167.84,25.897]
[1641282867523,9.06,167.91,167.84,25.897]
[1641282872024,2.1964438,167.9,167.84,25.897]
[1641282872424,2.6964438,167.9,167.84,25.897]
[1641282873227,2.6964438,167.9,167.8,0.02]
[1641282873426,2.9564438,167.9,167.83,0.5]
[1641282873830,2.9564438,167.9,167.81,2.5914]
[1641282874227,2.9564438,167.9,167.81,1.2487]
[1641282874628,2.9564438,167.9,167.8,22.6494]
[1641282875031,8.56,167.89,167.76,0.02]
[1641282875230,13.139,167.89,167.76,0.02]
[1641282875433,13.899,167.89,167.76,0.02]
[1641282876233,13.899,167.89,167.74,27.30019445]
[1641282876432,28.93323567,167.87,167.74,27.30019445]
[1641282876633,37.49323567,167.87,167.74,27.56019445]
[1641282876834,38.25323567,167.87,167.74,27.56019445]
[1641282877433,38.25323567,167.87,167.75,23.512]
[1641282877933,12.34364199,167.87,167.75,23.772]
[1641282878135,12.34364199,167.87,167.75,24.272]
[1641282879135,12.34364199,167.87,167.76,1.2626]
[1641282879536,12.34364199,167.87,167.76,1.5226]
[1641282879737,12.34364199,167.87,167.76,2.0226]
[1641282879934,12.34364199,167.87,167.76,1.5226]
[1641282880736,12.08364199,167.87,167.76,1.5226]
[1641282880939,12.08364199,167.87,167.76,2.0226]
[1641282882137,12.34364199,167.87,167.76,2.0226]
[1641282883542,9.32,167.87,167.76,2.0226]
[1641282884542,12.10561143,167.87,167.76,2.0226]
[1641282886545,12.10561143,167.87,167.76,1.7626]
[1641282888145,12.10561143,167.87,167.76,2.0226]
[1641282890772,11.84561143,167.87,167.76,2.0226]
[1641282891374,11.84561143,167.87,167.76,1.7626]
[1641282891972,12.10561143,167.87,167.76,1.2626]
[1641282892273,11.84561143,167.87,167.76,1.2626]
[1641282892473,11.84561143,167.87,167.76,1.7626]
[1641282892674,11.84561143,167.87,167.76,2.0226]
[1641282893177,9.06,167.87,167.76,2.0226]
[1641282893574,9.32,167.87,167.76,2.0226]
[1641282894278,4.32895673,167.86,167.76,1.7626]
[1641282894475,4.58895673,167.86,167.76,1.7626]
[1641282894675,5.08895673,167.86,167.76,1.7626]
[1641282896578,3.66226305,167.86,167.76,1.7626]
[1641282896776,0.26,167.86,167.76,1.7626]
[1641282896977,0.5,167.86,167.76,2.0226]
[1641282897576,9.32,167.87,167.76,2.0226]
[1641282897776,12.27090683,167.87,167.76,2.0226]
[1641282899176,9.32,167.87,167.76,2.0226]
[1641282903484,9.32,167.87,167.76,1.7626]
[1641282905486,9.32,167.87,167.76,2.0226]
[1641282907887,9.06,167.87,167.76,2.0226]
[1641282914397,9.06,167.87,167.76,1.2626]
[1641282914596,9.32,167.87,167.76,1.2626]
[1641282916024,9.32,167.87,167.76,1.5226]
[1641282916925,33.371,167.87,167.76,1.5226]
[1641282923534,33.371,167.87,167.75,23.512]
[1641282923735,42.3142,167.87,167.75,23.512]
[1641282926141,43.74089368,167.87,167.75,23.512]
[1641282927638,43.74089368,167.87,167.75,24.012]
[1641282929439,43.48089368,167.87,167.75,24.012]
[1641282929739,33.111,167.87,167.75,24.272]
[1641282930539,33.111,167.87,167.76,1.341]
[1641282930838,33.371,167.87,167.76,1.841]
[1641282931039,33.371,167.87,167.76,2.101]
[1641282931238,33.371,167.87,167.76,1.841]
[1641282933446,34.79769368,167.87,167.76,1.841]
[1641282935044,34.79769368,167.87,167.76,2.101]
[1641282935447,34.79769368,167.87,167.76,1.841]
[1641282938649,43.74139368,167.87,167.76,1.341]
[1641282939649,34.79769368,167.87,167.76,1.341]
[1641282940452,36.46840996,167.87,167.76,1.341]
[1641282940649,8.9442,167.86,167.76,1.341]
[1641282940850,26.50945119,167.85,167.76,1.341]
[1641282941150,26.76945119,167.85,167.76,1.341]
[1641282941373,27.26945119,167.85,167.76,1.341]
[1641282945578,27.00945119,167.85,167.76,1.341]
[1641282946276,27.00945119,167.85,167.76,1.601]
[1641282946877,27.26945119,167.85,167.76,1.601]
[1641282948478,27.26945119,167.85,167.76,1.341]
[1641282953283,32.06345119,167.85,167.76,1.341]
[1641282955182,27.26945119,167.85,167.76,1.341]
[1641282962587,8.56,167.85,167.76,1.341]
[1641282962987,8.56,167.85,167.76,2.101]
[1641282963389,1.67071628,167.87,167.76,2.101]
[1641282963592,2.52276171,167.86,167.78,23.73457696]
[1641282963987,2.52276171,167.86,167.78,24.49457696]
[1641282964687,2.52276171,167.86,167.79,24.1969]
[1641282964888,2.52276171,167.86,167.79,24.6969]
[1641282965090,2.78276171,167.86,167.79,26.242]
[1641282965889,0.26,167.86,167.79,26.242]
[1641282966093,9.32,167.88,167.79,26.242]
[1641282966990,11.57455743,167.88,167.79,26.242]
[1641282967191,11.31455743,167.88,167.79,26.242]
[1641282968593,8.56,167.91,167.79,26.242]
[1641282968794,1.67071628,167.93,167.79,34.802]
[1641282968992,1.67071628,167.93,167.8,78.52469368]
[1641282969194,1.67071628,167.93,167.81,31.2978]
[1641282969392,1.67071628,167.93,167.81,31.7978]
[1641282969594,29.80134943,167.97,167.81,32.0578]
[1641282969893,30.30134943,167.97,167.81,58.34939368]
[1641282970092,28.89063315,167.97,167.81,58.34939368]
[1641282970294,28.89063315,167.97,167.82,1.2866]
[1641282970493,28.89063315,167.97,167.83,8.56]
[1641282970694,28.13063315,167.97,167.83,8.56]
[1641282970894,28.13063315,167.97,167.83,9.32]
[1641282971098,28.13063315,167.97,167.85,23.76010522]
[1641282971297,28.13063315,167.97,167.86,24.2347]
[1641282971695,28.13063315,167.97,167.86,24.9947]
[1641282971895,28.39063315,167.97,167.86,24.9947]
[1641282972098,6.21484745,167.96,167.86,24.2347]
[1641282972495,8.56,167.95,167.86,24.2347]
[1641282972695,2.43443452,167.94,167.86,24.2347]
[1641282972896,2.93443452,167.94,167.86,24.2347]
[1641282973095,4.6211282,167.94,167.86,24.2347]
[1641282973495,13.1811282,167.94,167.86,24.2347]
[1641282973694,11.75443452,167.94,167.86,24.2347]
[1641282974497,3.19443452,167.94,167.86,24.2347]
[1641282975197,11.75443452,167.94,167.86,24.2347]
[1641282977200,11.49443452,167.94,167.86,24.2347]
[1641282977400,11.49443452,167.94,167.86,24.4947]
[1641282978602,11.75443452,167.94,167.86,24.4947]
[1641282985937,11.75443452,167.94,167.86,24.2347]
[1641282987538,11.75443452,167.94,167.82,0.02]
[1641282987736,22.648,167.93,167.82,0.02]
[1641282987936,8.56,167.92,167.82,0.02]
[1641282988137,111.59768135,167.91,167.82,0.02]
[1641282988340,88.2996,167.9,167.72,79.1783]
[1641282988536,29.8204,167.87,167.71,4.2651372]
[1641282988736,11.36922537,167.86,167.71,4.2651372]
[1641282988938,118.92922537,167.86,167.77,0.02]
[1641282989137,1.42669368,167.85,167.77,0.02]
[1641282989337,8.56,167.84,167.77,0.02]
[1641282989539,2.46646233,167.83,167.77,0.02]
[1641282989738,2.94741287,167.8,167.77,0.02]
[1641282989938,12.00741287,167.8,167.77,0.02]
[1641282990137,3.03019257,167.79,167.77,0.02]
[1641282990437,3.03019257,167.79,167.71,4.2651372]
[1641282990438,3.53019257,167.79,167.71,4.2651372]
[1641282990637,3.79019257,167.79,167.71,4.2651372]
[1641282990839,8.56,167.78,167.71,4.2651372]
[1641282991041,2.74429742,167.77,167.71,4.2651372]
[1641282991238,11.30429742,167.77,167.71,4.2651372]
[1641282991439,12.06429742,167.77,167.71,4.2651372]
[1641282998946,11.80429742,167.77,167.71,4.2651372]
[1641283000546,12.06429742,167.77,167.71,4.2651372]
[1641283001544,11.80429742,167.77,167.71,4.2651372]
[1641283002847,12.06429742,167.77,167.71,4.2651372]
[1641283003747,9.32,167.77,167.71,4.2651372]
[1641283004349,8.82,167.77,167.71,4.2651372]
[1641283006950,9.32,167.77,167.71,4.2651372]
[1641283009352,9.32,167.77,167.71,4.7651372]
[1641283010655,8.82,167.77,167.71,4.7651372]
[1641283011958,8.82,167.77,167.71,4.2651372]
[1641283012156,9.32,167.77,167.71,4.2651372]
[1641283012759,8.82,167.77,167.71,4.2651372]
[1641283012958,9.32,167.77,167.71,4.2651372]
[1641283015367,8.56,167.77,167.71,4.5251372]
[1641283015969,8.56,167.82,167.71,4.5251372]
[1641283016498,2.64292889,167.81,167.71,5.0251372]
[1641283017499,3.14292889,167.81,167.71,5.0251372]
[1641283018100,3.40292889,167.81,167.71,5.0251372]
[1641283018501,3.14292889,167.81,167.71,5.0251372]
[1641283019702,3.40292889,167.81,167.71,5.0251372]
[1641283020103,3.40292889,167.81,167.71,4.2651372]
[1641283024109,0.76,167.81,167.71,4.2651372]
[1641283024313,0.76,167.81,167.71,4.5251372]
[1641283024509,9.32,167.82,167.71,4.5251372]
[1641283024709,9.32,167.82,167.72,24.8982]
[1641283025112,9.32,167.82,167.72,25.1582]
[1641283025311,2.78475792,167.81,167.72,25.6582]
[1641283025710,3.28475792,167.81,167.72,25.6582]
[1641283026913,3.54475792,167.81,167.72,26.9395]
[1641283027918,3.54475792,167.81,167.72,26.6795]
[1641283028123,3.54475792,167.81,167.72,26.1795]
[1641283028518,3.54475792,167.81,167.72,26.4395]
[1641283029021,3.54475792,167.81,167.72,26.1795]
[1641283029219,3.54475792,167.81,167.72,26.6795]
[1641283029620,0.76,167.81,167.72,26.6795]
[1641283029821,9.32,167.82,167.72,26.6795]
[1641283030222,9.32,167.82,167.72,26.9395]
[1641283030421,1.997,167.77,167.72,26.9395]
[1641283036557,1.997,167.77,167.73,8.56]
[1641283036759,1.67071628,167.85,167.74,81.0]
[1641283036959,1.67071628,167.85,167.75,34.39499455]
[1641283037162,1.67071628,167.85,167.75,65.62299455]
[1641283037358,1.67071628,167.85,167.75,66.38299455]
[1641283038159,2.22873891,167.87,167.75,66.38299455]
[1641283038860,0.5,167.87,167.75,66.38299455]
[1641283039060,0.5,167.87,167.76,78.3431]
[1641283039262,0.5,167.87,167.77,8.56]
[1641283039461,0.5,167.87,167.78,22.8352]
[1641283039760,1.3734019,167.89,167.78,23.3352]
[1641283039962,1.3734019,167.89,167.79,9.8656]
[1641283040160,1.3734019,167.89,167.79,16.0906]
[1641283040360,1.3734019,167.89,167.79,16.8506]
[1641283043865,1.3734019,167.89,167.79,123.9106]
[1641283052074,1.3734019,167.89,167.8,23.8883]
[1641283052271,1.3734019,167.89,167.82,25.02540188]
[1641283052475,1.3734019,167.89,167.83,8.56]
[1641283052872,1.3734019,167.89,167.83,9.32]
[1641283057506,1.3734019,167.89,167.83,9.06]
[1641283059610,1.3734019,167.89,167.83,9.32]
[1641283060710,1.3734019,167.89,167.83,10.6248]
[1641283062112,1.3734019,167.89,167.83,2.0648]
[1641283064915,1.3734019,167.89,167.83,0.5]
[1641283064916,1.6334019,167.89,167.83,0.5]
[1641283065143,2.1334019,167.89,167.8,0.02]
[1641283065816,12.62902748,167.88,167.8,0.02]
[1641283066020,2.32515705,167.87,167.8,0.02]
[1641283066216,2.32515705,167.87,167.77,24.3674]
[1641283066417,3.08515705,167.87,167.77,0.5]
[1641283066918,3.08515705,167.87,167.76,0.02]
[1641283068318,3.92515705,167.87,167.75,24.8723]
[1641283068522,3.92515705,167.87,167.75,25.1323]
[1641283068720,3.92515705,167.87,167.75,25.6323]
[1641283068921,4.42515705,167.87,167.75,25.6323]
[1641283070124,3.92515705,167.87,167.75,25.6323]
[1641283070324,1.6,167.87,167.75,25.6323]
[1641283071128,1.34,167.87,167.79,1.202204]
[1641283071328,3.85445095,167.87,167.79,1.702204]
[1641283071527,3.85445095,167.87,167.79,1.962204]
[1641283072129,3.85445095,167.87,167.79,0.5]
[1641283072327,3.85445095,167.87,167.76,2.0713]
[1641283072527,4.11445095,167.87,167.76,1.5713]
[1641283072733,4.11445095,167.87,167.76,2.0713]
[1641283074329,4.61445095,167.87,167.76,2.0713]
[1641283074733,4.11445095,167.87,167.76,2.0713]
[1641283075631,4.11445095,167.87,167.76,0.76]
[1641283075836,32.75007404,167.87,167.76,0.26]
[1641283076032,32.75007404,167.87,167.75,25.6323]
[1641283076331,32.49007404,167.87,167.75,25.6323]
[1641283076930,32.99007404,167.87,167.75,25.6323]
[1641283077533,41.55007404,167.87,167.75,25.6323]
[1641283077734,41.81007404,167.87,167.75,25.1323]
[1641283079836,41.81007404,167.87,167.75,25.6323]
[1641283080258,12.67445095,167.87,167.75,25.6323]
[1641283081862,4.11445095,167.87,167.75,25.6323]
[1641283082664,4.11445095,167.87,167.76,1.336]
[1641283082864,4.11445095,167.87,167.76,1.836]
[1641283083066,4.11445095,167.87,167.76,2.096]
[1641283083464,1.6,167.87,167.76,2.096]
[1641283084065,1.6,167.87,167.77,24.9747]
[1641283084366,1.6,167.87,167.77,25.4747]
[1641283084565,2.97644318,167.86,167.77,25.7347]
[1641283084972,3.23644318,167.86,167.77,0.76]
[1641283085368,3.23644318,167.86,167.74,25.09442978]
[1641283085568,3.23644318,167.86,167.74,33.65442978]
[1641283086575,3.23644318,167.86,167.75,1.2717]
[1641283086975,3.23644318,167.86,167.75,2.0317]
[1641283087177,3.23644318,167.86,167.75,26.3172]
[1641283087374,3.23644318,167.86,167.75,34.8772]
[1641283089775,2.97644318,167.86,167.75,34.8772]
[1641283091477,3.23644318,167.86,167.75,34.8772]
[1641283100986,2.03423918,167.86,167.75,34.8772]
[1641283102990,75.1874019,167.89,167.75,34.8772]
[1641283103193,75.1874019,167.89,167.75,108.9577]
[1641283103990,77.81802333,167.89,167.75,108.9577]
[1641283108115,78.07802333,167.89,167.75,108.9577]
[1641283109920,78.07802333,167.89,167.75,108.6977]
[1641283111317,78.07802333,167.89,167.75,108.9577]
[1641283111919,1.67071628,167.94,167.89,4.00501825]
[1641283112120,76.00991628,168.05,167.89,12.82501825]
[1641283112321,76.00991628,168.05,167.9,1.42669368]
[1641283112522,76.0099,168.05,167.91,8.56]
[1641283112921,25.43290586,168.07,167.92,27.5582119]
[1641283113124,25.43290586,168.07,167.93,8.56]
[1641283113424,25.43290586,168.07,167.93,16.07569368]
[1641283113621,25.43290586,168.07,167.94,1.42669368]
[1641283113822,25.43290586,168.07,167.95,8.56]
[1641283114121,2.92804229,168.08,167.95,10.24669368]
[1641283114322,62.73790172,168.1,167.95,10.74669368]
[1641283114822,63.23790172,168.1,167.95,10.74669368]
[1641283115423,63.23790172,168.1,167.95,22.20750718]
[1641283115822,62.73790172,168.1,167.95,32.21185166]
[1641283116522,62.73790172,168.1,167.96,107.06]
[1641283116822,62.73790172,168.1,167.97,9.98669368]
[1641283117024,62.73790172,168.1,167.97,10.24669368]
[1641283117225,62.73790172,168.1,167.99,29.2878602]
[1641283117423,62.73790172,168.1,168.0,8.56]
[1641283117823,62.73790172,168.1,168.0,9.32]
[1641283118424,62.73790172,168.1,168.01,1.42669368]
[1641283118626,62.73790172,168.1,168.02,8.56]
[1641283118824,62.73790172,168.1,168.02,9.06]
[1641283119026,62.73790172,168.1,168.02,9.32]
[1641283120623,62.73790172,168.1,168.02,9.06]
[1641283122027,62.73790172,168.1,168.02,9.32]
[1641283123027,62.73790172,168.1,168.02,9.06]
[1641283124430,62.73790172,168.1,168.02,9.32]
[1641283128734,62.73790172,168.1,168.03,1.42669368]
[1641283129032,62.73790172,168.1,168.03,10.74669368]
[1641283129230,62.73790172,168.1,168.03,9.32]
[1641283131933,62.73790172,168.1,168.03,10.74669368]
[1641283132134,37.23600806,168.1,168.03,10.74669368]
[1641283132434,37.23600806,168.1,168.04,0.55695294]
[1641283132838,37.23600806,168.1,168.05,1.42669368]
[1641283133036,37.23600806,168.1,168.05,1.68669368]
[1641283133236,37.23600806,168.1,168.05,2.18669368]
[1641283133437,37.23600806,168.1,168.06,1.42669368]
[1641283133638,37.23600806,168.1,168.06,29.31568476]
[1641283133837,37.23600806,168.1,168.06,30.07568476]
[1641283134040,37.23600806,168.1,168.06,28.64899108]
[1641283134337,37.23600806,168.1,168.06,30.07568476]
[1641283135539,37.23600806,168.1,168.06,2.18669368]
[1641283136144,37.23600806,168.1,168.06,7.229]
[1641283136739,37.23600806,168.1,168.07,30.21101801]
[1641283136943,37.23600806,168.1,168.08,3.03219997]
[1641283137340,37.23600806,168.1,168.08,3.79219997]
[1641283140541,37.23600806,168.1,168.09,8.56]
[1641283140941,37.23600806,168.1,168.09,9.32]
[1641283141748,37.23600806,168.1,168.09,9.06]
[1641283143044,37.23600806,168.1,168.09,9.32]
[1641283144051,37.23600806,168.1,168.09,16.45903]
[1641283144351,37.23600806,168.1,168.09,17.88572368]
[1641283145552,79.0105,168.25,168.1,57.58345136]
[1641283145755,154.5652,168.25,168.11,83.9817]
[1641283145952,155.0652,168.25,168.12,1.3738]
[1641283146152,155.0652,168.25,168.13,8.56]
[1641283146352,76.0547,168.25,168.13,9.06]
[1641283146554,106.65819281,168.25,168.14,2.96229502]
[1641283146955,106.65819281,168.25,168.14,3.72229502]
[1641283148181,106.15819281,168.25,168.14,3.72229502]
[1641283148379,106.65819281,168.25,168.14,3.72229502]
[1641283148880,106.65819281,168.25,168.15,8.56]
[1641283149080,106.65819281,168.25,168.15,8.82]
[1641283149282,31.10349281,168.25,168.15,9.32]
[1641283149483,56.4472,168.31,168.15,9.32]
[1641283149685,122.8072,168.31,168.15,10.74669368]
[1641283150381,122.8072,168.31,168.17,3.00162364]
[1641283150583,24.6443955,168.3,168.17,35.08900415]
[1641283150783,24.6443955,168.3,168.17,35.58900415]
[1641283150981,25.1443955,168.3,168.17,35.58900415]
[1641283151183,24.6443955,168.3,168.17,35.58900415]
[1641283151685,75.3425,168.31,168.17,111.12530415]
[1641283151886,75.8425,168.31,168.17,111.12530415]
[1641283152487,75.3425,168.31,168.17,111.12530415]
[1641283152684,26.12279695,168.3,168.17,111.12530415]
[1641283152885,26.12279695,168.3,168.17,110.86530415]
[1641283153286,26.12279695,168.3,168.17,112.29199783]
[1641283154087,26.12279695,168.3,168.17,112.55199783]
[1641283156287,26.12279695,168.3,168.18,1.2799]
[1641283156488,26.12279695,168.3,168.2,2.44636831]
[1641283156689,26.12279695,168.3,168.2,11.00636831]
[1641283156889,26.12279695,168.3,168.2,11.76636831]
[1641283158291,1.3594,168.34,168.2,13.19306199]
[1641283158993,1.3594,168.34,168.2,11.76636831]
[1641283159191,1.3594,168.34,168.21,26.56439014]
[1641283159391,1.3594,168.34,168.22,8.56]
[1641283159591,1.3594,168.34,168.23,2.25459655]
[1641283159793,1.3594,168.34,168.23,10.81459655]
[1641283159993,1.3594,168.34,168.23,11.57459655]
[1641283160196,1.3521,168.35,168.23,11.57459655]
[1641283161892,1.8521,168.35,168.23,11.57459655]
[1641283162093,1.1619561,168.35,168.23,11.57459655]
[1641283162495,79.3529,168.36,168.23,11.31459655]
[1641283162694,79.3529,168.36,168.23,10.81459655]
[1641283162993,78.8529,168.36,168.23,10.81459655]
[1641283163395,79.3529,168.36,168.23,8.56]
[1641283163595,79.3529,168.36,168.2,8.56]
[1641283163798,8.56,168.35,168.2,8.56]
[1641283163996,8.82,168.35,168.2,8.82]
[1641283164197,9.32,168.35,168.2,8.82]
[1641283164395,9.32,168.35,168.21,29.96118759]
[1641283164595,9.32,168.35,168.21,30.22118759]
[1641283165096,9.06,168.35,168.21,30.22118759]
[1641283165298,0.5,168.35,168.22,8.56]
[1641283165497,0.5,168.35,168.22,8.82]
[1641283165699,103.6076,168.36,168.22,9.32]
[1641283166098,102.6076,168.36,168.22,31.9826]
[1641283166798,102.6076,168.36,168.22,9.32]
[1641283167400,102.6076,168.36,168.22,8.56]
[1641283167597,8.56,168.35,168.18,8.56]
[1641283167999,9.32,168.35,168.18,8.56]
[1641283168399,9.32,168.35,168.19,24.65374773]
[1641283168601,9.32,168.35,168.19,26.92233259]
[1641283168801,9.32,168.35,168.19,27.42233259]
[1641283168999,9.32,168.35,168.19,27.68233259]
[1641283170001,9.32,168.35,168.19,3.02858486]
[1641283170802,8.49194245,168.35,168.19,3.02858486]
[1641283171205,7.28951935,168.35,168.19,3.02858486]
[1641283171403,6.39314705,168.35,168.19,3.02858486]
[1641283172508,4.28035775,168.35,168.19,3.02858486]
[1641283174837,4.28035775,168.35,168.19,4.45527854]
[1641283177640,4.28035775,168.35,168.19,3.02858486]
[1641283178641,4.28035775,168.35,168.19,4.45527854]
[1641283178842,4.28035775,168.35,168.19,3.02858486]
[1641283180242,4.28035775,168.35,168.19,4.45527854]
[1641283180440,4.28035775,168.35,168.2,23.0318]
[1641283180839,4.28035775,168.35,168.2,23.7918]
[1641283181040,4.28035775,168.35,168.22,2.89878309]
[1641283181442,4.28035775,168.35,168.22,3.65878309]
[1641283183048,4.28035775,168.35,168.22,32.99774476]
[1641283189761,750.81150516,168.57,168.54,58.94406531]
[1641283189958,0.14932957,168.74,168.54,58.94406531]
[1641283189959,0.14932957,168.74,168.57,22.06313928]
[1641283190360,0.14932957,168.74,168.57,6.82313928]
[1641283190561,0.14932957,168.74,168.57,7.12183928]